Cogmind - Beta 14 X2 @@@ ROGUE MODE // 2024.08.05 @ 23:06:14 Player: Olafz Result: Self-destructed Performance ------------- Evolutions (2) 1000 Regions Visited (3) 600 Robots Destroyed (44) 220 Value Destroyed (939) 939 Prototype IDs (2) 40 Alien Tech Used (0) 0 Bonus (48) 48 TOTAL SCORE: 2847 Bonus ------- High Alert Combat Kills 48 Cogmind --------- Core Integrity 303/550 Matter 86/300 Energy 100/100 System Corruption 0% Temperature Cool (0) Movement Core (150) Ox2 Location -8/Materials Parts ------- > --- POWER (1) -------- (None) > --- PROPULSION (2) --- (None) > --- UTILITY (6) ------ Small Storage Unit Signal Interpreter > --- WEAPON (2) ------- High-powered Shotgun > --- INVENTORY (8) ---- Light Ion Engine Light Ion Engine Wheel Wheel Improved Terrain Scanner ECM Suite Peak State ------------ > --- POWER ------------ Cooled Ion Engine > --- PROPULSION ------- Aluminum Leg Improved Aluminum Leg > --- UTILITY ---------- Small Storage Unit Sensor Array Signal Interpreter > --- WEAPON ----------- High-powered Shotgun High-powered Shotgun > --- INVENTORY -------- Light Ion Engine Light Ion Engine Light Ion Engine Aluminum Leg Wheel Wheel Improved Terrain Scanner ECM Suite [Rating: 16] Favorites ----------- Power Light Ion Engine Engine Light Ion Engine Propulsion Aluminum Leg Leg Aluminum Leg Utility Small Storage Unit Device Structural Scanner Storage Small Storage Unit Processor Signal Interpreter Weapon Heavy EM Pulse Gun Energy Gun Heavy EM Pulse Gun Ballistic Gun Assault Rifle Build | -11 -10 -9 -8 ------- Run | Yrd Mat Mat Mat Slots Evolved 4 | . . 2 2 Power . | . . . . Propulsion . | . . . . Utility 4 | . . 2 2 Weapon . | . . . . Parts Attached 23 | . 4 12 7 Power 4 | . . 3 1 Engine 4 | . . 3 1 Core . | . . . . Reactor . | . . . . Propulsion 6 | . 2 2 2 Treads . | . . . . Leg 6 | . 2 2 2 Wheel . | . . . . Hover . | . . . . Flight . | . . . . Utility 5 | . 2 3 . Device 4 | . 2 2 . Storage . | . . . . Processor 1 | . . 1 . Hackware . | . . . . Protection . | . . . . Artifact . | . . . . Weapon 8 | . . 4 4 Energy Gun 3 | . . 3 . Energy Cannon . | . . . . Ballistic Gun 5 | . . 1 4 Ballistic Cannon . | . . . . Launcher . | . . . . Special Weapon . | . . . . Impact Weapon . | . . . . Slashing Weapon . | . . . . Piercing Weapon . | . . . . Special Melee Weapon . | . . . . Unidentified Prototypes 1 | . . 1 . Corrupted Parts 1 | . . 1 . System Corruption 3 | . . 3 . Parts Lost 14 | . . 4 10 Power 2 | . . . 2 Propulsion 5 | . . 2 3 Utility 2 | . . . 2 Weapon 5 | . . 2 3 Highest Loss Streak 7 | . . 3 7 To Critical Strikes . | . . . . Average Slot Usage (%) 83 | . 95 86 62 Engine 11 | . 14 11 7 Leg 21 | . 28 21 14 Device 13 | . 10 16 10 Storage 11 | . 14 11 9 Processor 4 | . . 5 9 Energy Gun 14 | . 14 18 3 Ballistic Gun 6 | . 14 2 8 Naked Turns . | . . . . Heaviest Build 21 | 11 12 21 20 Greatest Support 23 | 20 20 20 23 Greatest Overweight (x) 4 | . . 2 4 Average Overweight (x) . | . . . . Largest Inventory Capacity 8 | . 8 8 8 Average Capacity 8 | . 8 8 8 Most Carried 8 | . 8 8 8 Average Carried 7 | . 7 7 7 Final Capacity 8 | 8 8 8 8 Final Carried 7 | 6 7 7 6 Class Distribution -------------------- 79% | Mutant 17% | Skirmisher Dominant Class ---------------- Mutant | -10/Materials Mutant | -9/Materials Mutant | -8/Materials Resources | -11 -10 -9 -8 ----------- Run | Yrd Mat Mat Mat Matter Collected 447 | 200 11 121 115 Remotely . | . . . . Salvage Created 1202 | . 267 648 287 Parts 86 | . 20 53 13 Haulers Intercepted . | . . . . Recyclers Shooed . | . . . . Parts Field Recycled . | . . . . Retrieved Matter . | . . . . Parts Self-Destructed . | . . . . Prevented . | . . . . Kills | -11 -10 -9 -8 ------- Run | Yrd Mat Mat Mat Combat Hostiles Destroyed 37 | . 10 19 8 Guns 33 | . 10 16 7 AOE 3 | . . 3 . Classes Destroyed 7 | . 2 4 1 Worker 2 | . . 2 . Builder 1 | . . . 1 Operator 1 | . . 1 . Watcher 3 | . . 3 . Swarmer 21 | . 6 12 3 Grunt 11 | . 4 6 1 Sentry 5 | . . 1 4 Best Kill Streak 6 | . 3 6 6 Combat Bots Only 5 | . 3 5 4 Max Kills in Single Turn 2 | . 1 2 2 Gunslinging 1 | . . 1 1 Exploded 2 | . . 2 . Melee . | . . . . Uniques/NPCs Destroyed . | . . . . Combat | -11 -10 -9 -8 -------- Run | Yrd Mat Mat Mat Hostile Shots Fired 276 | . 52 74 150 Missed 88 | . 22 23 43 Damage Taken 2023 | . 280 546 1197 Core 420 | . 80 93 247 Absorbed by Shields . | . . . . Regen/Repaired (Parts) 13 | . . 13 . Core Remaining (%) 81 | 100 68 76 . Volleys Fired 114 | . 30 44 40 Largest 2 | . 2 2 2 Hottest 90 | . 60 90 50 Shots Fired 201 | . 55 82 64 Gun 201 | . 55 82 64 Cannon . | . . . . Launcher . | . . . . Special . | . . . . Kinetic 89 | . 30 8 51 Thermal 33 | . 25 8 . Explosive . | . . . . Electromagnetic 79 | . . 66 13 Robot Hit Streak 7 | . 7 7 7 Robot Miss Streak 8 | . 5 8 5 Penetration Max . | . . . . Secondary Targets 8 | . 3 2 3 Max Gunslinging Chain 1 | . 1 1 1 Shots Hit Robots 113 | . 27 41 45 Core Hits 58 | . 16 27 15 Critical Kills . | . . . . Critical Parts Destroyed 2 | . 1 . 1 Critical Strikes 2 | . 1 . 1 Destroy 2 | . 1 . 1 Melee Attacks . | . . . . Impact . | . . . . Slashing . | . . . . Piercing . | . . . . Sneak Attacks . | . . . . Combat Hostiles . | . . . . Follow-up Attacks . | . . . . Damage Inflicted 1840 | . 316 812 712 Guns 1674 | . 316 646 712 Cannons . | . . . . Explosions 166 | . . 166 . Melee . | . . . . Ramming . | . . . . Kinetic 807 | . 177 63 567 Thermal 380 | . 139 241 . Explosive . | . . . . Electromagnetic 653 | . . 508 145 Impact . | . . . . Slashing . | . . . . Piercing . | . . . . Highest Corruption 3 | . . 3 . Average Corruption 3 | . . 3 . Corruption Purged . | . . . . Corruption Blocked . | . . . . Effects 1 | . . 1 . Data Loss (minor) 1 | . . 1 . Overload Shots . | . . . . Overflow Damage 8 | . . 8 . Projectiles . | . . . . Explosions 8 | . . 8 . Melee . | . . . . Knockbacks . | . . . . Impact . | . . . . Kinetic . | . . . . Secondary . | . . . . Self-Inflicted Damage . | . . . . Shots . | . . . . Rammed . | . . . . Targets Rammed . | . . . . Kicked . | . . . . Crushed . | . . . . Highest Temperature 144 | . 48 144 21 Average Temperature 37 | . 26 41 5 Received Heat Transfer 483 | . 54 96 333 Siege Activations . | . . . . Robots Corrupted 1 | . . . 1 Combat Hostiles 1 | . . . 1 Parts Fried 2 | . . 1 1 Impact Corruptions . | . . . . Robots Melted . | . . . . Combat Hostiles . | . . . . Parts Melted . | . . . . Heat Transferred 650 | . 325 325 . Parts Sabotaged . | . . . . Parts Stolen . | . . . . Parts Stripped . | . . . . Power Chain Reactions 3 | . . 3 . Alert | -11 -10 -9 -8 ------- Run | Yrd Mat Mat Mat Peak Influence 475 | . 361 475 452 Initial 195 | . . 152 195 Average 276 | . 190 313 297 Maximum Alert Level 2 | . 1 2 2 Low Security (%) 26 | . 42 15 30 Level 1 61 | . 57 69 46 Level 2 12 | . . 14 23 Level 3 . | . . . . Level 4 . | . . . . Level 5 . | . . . . High Security . | . . . . Max Security . | . . . . Squads Dispatched 4 | . 1 1 2 Investigation . | . . . . Extermination . | . . . . Reinforcement 4 | . 1 1 2 Assault . | . . . . Garrison . | . . . . Intercept . | . . . . Searches Triggered . | . . . . Construction Impeded 1 | . . . 1 Haulers Reinforced . | . . . . Active Scanning Responses . | . . . . Cargo Convoy Interrupts . | . . . . Stealth | -11 -10 -9 -8 --------- Run | Yrd Mat Mat Mat Distress Signals 10 | . 1 6 3 Communications Jammed . | . . . . Distress Signals . | . . . . Times Spotted 68 | . 18 28 22 Peak Tracking Total 8 | . 4 8 8 Tactical Retreats 6 | . 2 . 4 Traps | -11 -10 -9 -8 ------- Run | Yrd Mat Mat Mat Traps Triggered 1 | . . 1 . Indirectly . | . . . . Trap Hack Attempts . | . . . . Triggered . | . . . . Disarmed . | . . . . Reprogrammed . | . . . . Reused . | . . . . Traps Extracted . | . . . . Installed . | . . . . Triggered . | . . . . Machines | -11 -10 -9 -8 ---------- Run | Yrd Mat Mat Mat Machines Disabled 2 | . . 1 1 Max in Single Turn 1 | . . 1 1 Machines Repaired . | . . . . Machines Dismantled . | . . . . Machines Sabotaged . | . . . . Overloaded Fab Kills . | . . . . Hacking | -11 -10 -9 -8 --------- Run | Yrd Mat Mat Mat Machines Accessed 3 | . 1 2 . Terminals . | . . . . Fabricators . | . . . . Repair Stations 1 | . . 1 . Recycling Units 1 | . 1 . . Scanalyzers 1 | . . 1 . Garrison Access . | . . . . Total Hacks 7 | . 1 6 . Successful 5 | . 1 4 . Failed 2 | . . 2 . Catastrophic . | . . . . Database Lockouts . | . . . . Manual . | . . . . Terminals . | . . . . Fabricators . | . . . . Repair Stations 4 | . . 4 . Recycling Units 1 | . 1 . . Scanalyzers 2 | . . 2 . Garrison Access . | . . . . Terminal Hacks . | . . . . Fabricator Hacks . | . . . . Repair Station Hacks 2 | . . 2 . Scan Component 1 | . . 1 . Repair 1 | . . 1 . Recycling Unit Hacks 1 | . 1 . . Retrieve Components 1 | . 1 . . Scanalyzer 2 | . . 2 . Insert Component 1 | . . 1 . Analyze 1 | . . 1 . Garrison Access Hacks . | . . . . Unauthorized Hacks . | . . . . Terminals . | . . . . Fabricators . | . . . . Repair Stations . | . . . . Recycling Units . | . . . . Scanalyzers . | . . . . Garrison Access . | . . . . Data Cores Recovered . | . . . . Used . | . . . . Hacking Detections . | . . . . Full Trace Events . | . . . . Feedback Events . | . . . . Feedback Blocked . | . . . . Robot Schematics Acquired . | . . . . Robots Built . | . . . . Authchips . | . . . . Time . | . . . . Total Robot Build Rating . | . . . . Part Schematics Acquired 1 | . . 1 . Parts Built . | . . . . Authchips . | . . . . Time . | . . . . Total Part Build Rating . | . . . . Parts Repaired 1 | . . 1 . Time 26 | . . 26 . Parts Recycled . | . . . . Recycled Matter . | . . . . Retrieved Matter . | . . . . Retrieved Components 4 | . 4 . . Parts Scanalyzed 1 | . . 1 . Part Schematics Acquired 1 | . . 1 . Parts Damaged . | . . . . Bothacking | -11 -10 -9 -8 ------------ Run | Yrd Mat Mat Mat Used RIF Installer . | . . . . Robots Hacked . | . . . . Non-combat . | . . . . Combat . | . . . . Robot Hacks Applied . | . . . . Relay Couplers Released . | . . . . Fabnet Peak Effective % . | . . . . Robots Rewired . | . . . . Allies Hacked . | . . . . Hacks Repelled . | . . . . Allies | -11 -10 -9 -8 -------- Run | Yrd Mat Mat Mat Total Allies . | . . . . Largest Group . | . . . . Highest-Rated Group . | . . . . Highest-Rated Ally . | . . . . Total Orders . | . . . . Ally Attacks . | . . . . Total Damage . | . . . . Kills . | . . . . Allies Corrupted . | . . . . Allies Melted . | . . . . Intel | -11 -10 -9 -8 ------- Run | Yrd Mat Mat Mat Robot Analysis Total . | . . . . Derelict Logs Recovered . | . . . . Drone Launches . | . . . . Drone Recoveries . | . . . . Exploration | -11 -10 -9 -8 ------------- Run | Yrd Mat Mat Mat Turns Passed 1098 | . 297 567 234 Spaces Moved 534 | 1 165 277 91 Core 2 | . . . 2 Treads . | . . . . Legs 532 | 1 165 277 89 Wheels . | . . . . Hover . | . . . . Flight . | . . . . Fastest Speed 120 | 120 120 120 120 Average Speed 132 | 120 120 139 131 Slowest Speed 260 | 120 120 260 250 Overloaded Moves . | . . . . Propulsion Burnouts . | . . . . Robots Hopped . | . . . . Cave-ins Triggered . | . . . . Exploration Rate (%) 23 | 2 40 38 14 Regions Visited 3 Branch Regions . Pre-discovered Areas . | . . . . Known Exits Taken . | . . . . Unknown Exits Taken 3 | 1 1 1 . Scrap Searched . | . . . . Spaces Dug . | . . . . Terrain Destroyed 12 | . . 12 . Melee . | . . . . Projectile . | . . . . AOE 12 | . . 12 . Terrain Rammed . | . . . . Walls Destroyed . | . . . . Machines Disabled . | . . . . Actions | -11 -10 -9 -8 --------- Run | Yrd Mat Mat Mat Total 726 | . 211 376 139 Wait 37 | . 4 33 . Move 531 | . 164 276 91 Hop . | . . . . Pick Up 7 | . 3 4 . Fast Attach 12 | . 2 6 4 Attach 5 | . . 3 2 Detach 2 | . 1 1 . Swap 6 | . 2 3 1 Drop 12 | . 5 6 1 Fire 114 | . 30 44 40 Melee . | . . . . Ram . | . . . . Kick . | . . . . Crush . | . . . . Escape Stasis . | . . . . Rewire . | . . . . Trap . | . . . . Miscellaneous . | . . . . Route ------- -11/Scrapyard -10/Materials -9/Materials -8/Materials History --------- Turn | Location | Event 1 | -11/Scrapyard | Discovered new exit (range 0) 1 | -11/Scrapyard | Entered Materials 276 | -10/Materials | Discovered new exit (range 5) 298 | -10/Materials | Entered another Materials area 298 | -9/Materials | Evolved 2 slots: Utility x2 302 | -9/Materials | Build established: Mutant 340 | -9/Materials | Repaired Structural Scanner 809 | -9/Materials | Lost 3 parts (2n1w) 850 | -9/Materials | Discovered new exit (range 14) 865 | -9/Materials | Entered another Materials area 865 | -8/Materials | Evolved 2 slots: Utility x2 1099 | -8/Materials | Self-destructed Last Messages --------------- U-05 Engineer destroyed. Processing Tank disabled. Aluminum Leg destroyed. Destroyed Flight Unit. S-10 Pest destroyed. Switching to secondary target: Y-45 Defender. Sensor Array destroyed. Hvy. Assault Rifle destroyed. R-06 Scavenger collects Lgt. Treads. Acquired Hpw. Shotgun. R-06 Scavenger collects Heat Sink. Electrolysis Chamber disabled. Acquired 59 matter. Aluminum Leg destroyed. Acquired 40 matter. Y-45 Defender destroyed. Switching to secondary target: G-47 Trooper. Lgt. Ion Engine destroyed. Critical hit (Burn: +37). Hpw. Shotgun destroyed. Map ----- +----------------------------------------------------+ | ?????????????????????????????????????????????? | | ?????????????????????????????????????????????? | | ?????????????????????????????????????????????? | | ?????????????????????????????????????????????? | | ?????????????????????????????????????????????? | | ?????????????????????????????????????????????? | | ???????????????????????????????????????????### | | ???????????????????????????????????????????### | | ??????????????????????????????????????????? | | ??????????????????????????????????????????? | | ??????????????????????????????????????????? | | ??????????????????????????????????????????? | | ???????????????????????????? ?????????????? | | ???????????????????????????? ?????????????? ? | | ???????????????????????????? ?????????????? ? | | ???????????????????????????# +????????? % | | ???????????????????????????# # #######/## | | ??????????????????????????## ############ = | | ??????????????????????????# % | | ??????????????????????????# * | | ??????????????????????????# " | | ??????????????##########??# ^ "" | | ??????????????# #??# #??######### "" | | ??????????????# """ #??# #??## %# | | ??????????????# """ [#??# #??## = # | | ??????????????# "" @*#### ##### / "" | | ??????????????#! [=/s= / """ # "" | | ??????????????# [ [*!o#### ##### """ # "" | | ??????????????# [[ %= #??## #??## """ # | | ??????????????# [ #???# #??######### | | ??????????????# g ! #???# #?########## "" | | ?????????# #######s####???# #?########## "" | | ?????????# %! w #?????# #?## + "" | | ?????????# = % #?????# #?## # | | ?????????# """ g #?????# #?## # | | ?????????+ """"" #?????# #?########## | | ??????????? """""w !#?????# #? """ #####+## | | ??????????? %#????? ?????? # "T" | | ??????????? ????? ?????? # | | ??????????? ????? ?????? # ! | | ???????????########"###???? ?????? # | | ?????????????????? ??????# #?????? #!! | | ?????????????????? T ??????? ??????? #!! """ | | ?????????????????? ???????????????? #! """ | | ?????????????????? * ???????????????? # ] """ | | ?????????????????? ???????????????? # | | ?????????????????? "???????????????? ######## | | ?????????????????? ?"???????????????? ######## | | ?????????????????? ??????????????????????????? | | ?????????????????????????????????????????????? | +----------------------------------------------------+ Best States ------------- Heat Dissipation 31 Energy Generation 14 Energy Capacity 280 Matter Stores 300 Matter Capacity 300 Sight Range 16 Robot Scan Range 14 Terrain Scan Density 10 Evasion (%) 55 Item Schematics ----------------- Imp. Flight Unit | -9/Materials | Scanalyzed Robot Schematics ------------------ None Fabricated ------------ Nothing Alien Tech Used ----------------- None Achievements -------------- None Challenges ------------ None Game ------ Seed HeartImpulseFlamer Manual? 0 Play Time 00:12:57 Cumulative 164.2 hours Start 2024.08.05 @ 13:07:21 End 2024.08.05 @ 23:06:14 Sessions 3 Manual Loads 0 Difficulty Rogue Special Mode None Game No. 268 Rogue 266 Adventurer 2 Explorer 0 Win Type - Total 5 Types 4/0/0/1/0/0/0/0/0 Lore% 57 Gallery% 61 Achievement% 52 Wizard Run 0 Options --------- Layout 0 ASCII 0 Keyboard 1 Movement Numpad Keybinds 1 Fullscreen 2 Font 18/SmallcapsGlow Map View 76x50 Zoom Use 0% Tactical HUD 1 Map Filters NONE Filters NONE Steam 1 RUN: 620881be-34bc-4caa-a449-7f2ad472e8aa